bitfinex/quotes_SOLUSD_20250414
["timestamp","ask_amount","ask_price","bid_price","bid_amount"]
[1744668453930,0.03,129.44,129.43,1.641]
[1744668454129,0.03,129.44,129.43,13.89133415]
[1744668454445,0.03,129.44,129.43,14.17565729]
[1744668454651,0.03,129.44,129.43,21.90175729]
[1744668457245,0.03,129.44,129.43,33.86175729]
[1744668458353,0.03,129.44,129.43,31.93643415]
[1744668458527,0.03,129.44,129.43,11.96]
[1744668458848,0.03,129.44,129.42,19.97673415]
[1744668459044,0.03,129.44,129.42,7.7264]
[1744668459225,0.03,129.44,129.41,19.97733415]
[1744668459560,0.03,129.44,129.41,7.727]
[1744668459851,0.03,129.44,129.41,19.97733415]
[1744668462647,0.03,129.44,129.42,12.25033415]
[1744668462944,0.03,129.44,129.42,19.97683415]
[1744668463344,0.03,129.44,129.41,12.25033415]
[1744668464054,0.03,129.44,129.41,19.97763415]
[1744668465363,0.03,129.44,129.42,12.25033415]
[1744668466259,0.03,129.44,129.41,19.97763415]
[1744668467359,0.03,129.44,129.41,15.56794312]
[1744668469263,0.03,129.44,129.4,15.56824312]
[1744668469751,7.87064312,129.44,129.39,7.7282]
[1744668469958,7.84064312,129.43,129.39,7.7282]
[1744668470640,15.56694312,129.43,129.39,7.7282]
[1744668471157,7.84064312,129.42,129.37,7.84064312]
[1744668472268,15.56754312,129.42,129.37,15.57014312]
[1744668479470,7.84064312,129.42,129.37,15.57014312]
[1744668479651,15.56704312,129.43,129.38,7.84064312]
[1744668480268,7.84064312,129.42,129.38,7.84064312]
[1744668480578,7.7264,129.43,129.36,27.57374312]
[1744668480579,7.84064312,129.4,129.36,27.57374312]
[1744668480775,7.84064312,129.41,129.36,27.57374312]
[1744668482484,15.56804312,129.41,129.36,27.57374312]
[1744668482682,7.84064312,129.4,129.36,27.57374312]
[1744668482982,7.84064312,129.4,129.36,19.7331]
[1744668483470,15.56804312,129.41,129.36,27.57374312]
[1744668483664,7.7274,129.41,129.37,7.84064312]
[1744668484160,7.7274,129.41,129.37,15.57014312]
[1744668485752,15.56804312,129.41,129.36,27.57374312]
[1744668486484,7.84064312,129.37,129.36,0.063]
[1744668487663,34.78863826,129.37,129.36,0.063]
[1744668487881,66.15121074,129.37,129.36,0.063]
[1744668488056,73.98491074,129.37,129.36,0.063]
[1744668488257,76.84957523,129.37,129.36,0.063]
[1744668488457,0.28432314,129.35,129.34,0.063]
[1744668488670,100.72280469,129.35,129.31,0.063]
[1744668488975,7.84064312,129.33,129.31,0.063]
[1744668489195,12.27512049,129.32,129.31,0.063]
[1744668489568,38.27512049,129.32,129.31,0.063]
[1744668489769,46.00782049,129.32,129.31,0.063]
[1744668490894,46.29214363,129.32,129.31,0.063]
[1744668491698,65.22611563,129.32,129.31,0.063]
[1744668492073,0.28432314,129.31,129.3,0.063]
[1744668492267,31.49341563,129.31,129.3,0.063]
[1744668492995,43.76853612,129.31,129.3,0.063]
[1744668494591,51.50183612,129.31,129.3,0.063]
[1744668494990,39.22671563,129.31,129.3,0.063]
[1744668497093,120.02671563,129.31,129.3,0.063]
[1744668506300,132.30183612,129.31,129.3,0.063]
[1744668506613,26.14216157,129.28,129.27,0.063]
[1744668506783,0.28432314,129.27,129.25,0.063]
[1744668506982,0.28432314,129.27,129.23,0.063]
[1744668506983,112.29341563,129.26,129.23,0.063]
[1744668507306,24.83456412,129.25,129.23,0.063]
[1744668507503,51.50543612,129.25,129.23,0.063]
[1744668507800,81.08432314,129.24,129.23,0.063]
[1744668508001,105.63456412,129.24,129.23,0.063]
[1744668509687,113.37206412,129.24,129.23,0.063]
[1744668510000,101.09694363,129.24,129.23,0.063]
[1744668519412,96.6898175,129.24,129.23,0.063]
[1744668520599,80.8,129.24,129.23,0.063]
[1744668520909,88.66799436,129.24,129.23,0.063]
[1744668521121,96.6898175,129.24,129.23,0.063]
[1744668521616,88.66799436,129.24,129.23,0.063]
[1744668521918,11.94,129.28,129.23,7.93099436]
[1744668522107,80.8,129.29,129.25,7.86799436]
[1744668523017,80.8,129.29,129.26,7.7363]
[1744668524909,80.8,129.29,129.23,27.1462]
[1744668525292,100.8158176,129.29,129.23,27.1462]
[1744668525515,100.8158176,129.29,129.24,12.2812176]
[1744668526402,80.8,129.29,129.25,20.0181176]
[1744668526804,93.0812176,129.29,129.25,7.7369]
[1744668528335,80.8,129.29,129.27,7.7357]
[1744668528627,12.2812176,129.3,129.26,7.736]
[1744668529202,12.2812176,129.3,129.26,20.0172176]
[1744668531223,12.2812176,129.3,129.26,19.0172176]
[1744668531523,12.2812176,129.3,129.26,6.736]
[1744668534221,12.2812176,129.31,129.26,6.736]
[1744668534402,12.2812176,129.31,129.26,19.0172176]
[1744668536201,20.0147176,129.31,129.26,19.0172176]
[1744668536523,12.2812176,129.3,129.26,6.736]
[1744668537711,12.2812176,129.31,129.26,19.0172176]
[1744668539033,12.2812176,129.31,129.27,1.616]
[1744668539213,24.2212176,129.32,129.28,6.165]
[1744668539404,11.94,129.32,129.28,18.4462176]
[1744668539730,12.2812176,129.3,129.28,6.165]
[1744668540731,88.5322,129.33,129.28,6.165]
[1744668541032,12.2812176,129.32,129.28,13.8999]
[1744668541730,93.0812176,129.33,129.28,26.1811176]
[1744668542507,12.2812176,129.32,129.28,13.8999]
[1744668543913,93.0812176,129.33,129.28,26.1811176]
[1744668544627,12.2812176,129.32,129.28,13.8999]
[1744668545223,7.85705687,129.32,129.28,13.8999]
[1744668545530,15.59035687,129.31,129.27,1.616]
[1744668545740,7.85705687,129.3,129.27,1.616]
[1744668546316,7.85705687,129.3,129.27,9.3516]
[1744668546726,15.59035687,129.31,129.27,9.3516]
[1744668547031,7.85705687,129.31,129.27,9.3516]
[1744668547236,7.85705687,129.32,129.27,17.20865687]
[1744668547637,80.8,129.33,129.28,7.85705687]
[1744668547813,80.8,129.33,129.29,13.90985687]
[1744668548633,15.65105687,129.35,129.3,7.85705687]
[1744668548842,7.85705687,129.34,129.29,13.90985687]
[1744668549950,7.85705687,129.34,129.3,7.7339]
[1744668550316,15.65105687,129.35,129.3,15.59095687]
[1744668550627,0.063,129.35,129.31,7.85705687]
[1744668551411,0.063,129.35,129.32,9.50335687]
[1744668551634,0.063,129.35,129.33,7.85705687]
[1744668551946,0.063,129.35,129.34,21.93475687]
[1744668552437,0.063,129.35,129.34,14.0777]
[1744668552626,0.063,129.35,129.34,21.93475687]
[1744668553936,0.063,129.35,129.34,14.0777]
[1744668555218,0.063,129.35,129.34,6.3462]
[1744668555420,0.063,129.35,129.33,7.7319]
[1744668555621,7.92005687,129.35,129.32,1.6463]
[1744668556018,7.85705687,129.34,129.32,1.6463]
[1744668556232,7.85705687,129.33,129.3,6.0913]
[1744668556844,7.85705687,129.32,129.29,9.3418]
[1744668557240,7.85705687,129.32,129.29,1.6075]
[1744668557241,7.85705687,129.31,129.29,1.6075]
[1744668558644,7.85705687,129.3,129.27,6.0335]
[1744668558841,7.85705687,129.29,129.25,1.6119]
[1744668560221,7.85705687,129.29,129.26,7.7361]
[1744668560418,15.59115687,129.3,129.26,7.7361]
[1744668560748,7.85705687,129.31,129.26,15.59315687]
[1744668562548,15.59035687,129.31,129.26,15.59315687]
[1744668562751,7.85705687,129.3,129.26,15.59315687]
[1744668562951,7.85705687,129.3,129.26,7.7361]
[1744668563149,7.85705687,129.3,129.26,15.59315687]
[1744668563529,7.85705687,129.3,129.26,7.7361]
[1744668565259,15.59105687,129.3,129.26,7.7361]
[1744668566356,7.85705687,129.3,129.26,7.7361]
[1744668567746,26.0,129.32,129.27,7.85705687]
[1744668567980,33.85705687,129.32,129.27,7.85705687]
[1744668568255,26.0,129.32,129.28,7.85705687]
[1744668568447,7.85705687,129.33,129.29,15.59155687]
[1744668568639,2.87383569,129.32,129.29,15.59155687]
[1744668569163,2.87383569,129.32,129.29,7.7345]
[1744668569334,7.85705687,129.31,129.26,7.85705687]
[1744668569832,7.85705687,129.28,129.25,1.6119]
[1744668573561,15.59225687,129.28,129.25,1.6119]
[1744668574155,7.85705687,129.27,129.23,0.063]
[1744668574358,7.85705687,129.25,129.23,0.063]
[1744668576342,15.59355687,129.26,129.23,0.063]
[1744668579075,7.7365,129.26,129.23,0.063]
[1744668579285,7.85705687,129.25,129.23,0.063]
[1744668581354,7.85705687,129.24,129.23,0.063]
[1744668583173,15.59455687,129.24,129.23,0.063]
[1744668585483,34.81285201,129.24,129.23,0.063]
[1744668585770,66.24107949,129.24,129.23,0.063]
[1744668588365,45.21829514,129.21,129.2,0.03]
[1744668588567,45.21829514,129.21,129.2,0.0001]
[1744668588768,101.62859514,129.2,129.18,0.03]
[1744668589072,20.04138001,129.19,129.18,0.03]
[1744668589449,22.89988284,129.19,129.18,0.03]
[1744668589745,30.64038284,129.19,129.18,0.03]
[1744668590367,62.06861032,129.19,129.18,0.03]
[1744668590572,59.21010749,129.19,129.18,0.03]
[1744668591175,44.54290876,129.19,129.18,0.03]
[1744668591572,44.54290876,129.19,129.18,0.0001]
[1744668593878,32.23386595,129.19,129.18,0.0001]
[1744668600079,7.7405,129.19,129.18,0.0001]
[1744668600255,7.7405,129.19,129.17,0.03]
[1744668600456,7.7397,129.21,129.17,12.33904281]
[1744668600662,12.30904281,129.2,129.17,0.03]
[1744668600861,7.7397,129.21,129.17,0.03]
[1744668601081,12.30904281,129.19,129.17,0.03]
[1744668601862,20.04994281,129.19,129.17,0.03]
[1744668602180,12.59336595,129.18,129.17,0.03]
[1744668602358,43.83638076,129.18,129.17,0.03]
[1744668602871,43.83638076,129.18,129.17,0.0001]
[1744668603261,44.933972,129.14,129.13,0.03]
[1744668603577,57.52733795,129.14,129.13,0.03]
[1744668604385,65.27083795,129.14,129.13,0.03]
[1744668606668,38.30904281,129.14,129.13,0.03]
[1744668606866,12.30904281,129.16,129.13,0.03]
[1744668607267,12.30904281,129.15,129.13,0.03]
[1744668607786,80.8,129.17,129.13,12.33904281]
[1744668607957,80.8,129.17,129.13,18.94714281]
[1744668608164,93.10904281,129.17,129.13,18.94714281]
[1744668608975,80.8,129.17,129.13,18.94714281]
[1744668609275,12.30904281,129.18,129.13,18.94714281]
[1744668609875,31.92954281,129.19,129.14,20.05254281]
[1744668610588,20.04954281,129.19,129.14,20.05254281]
[1744668610883,80.8,129.21,129.17,12.30904281]
[1744668611087,12.30904281,129.2,129.16,1.6205]
[1744668611387,12.30904281,129.19,129.16,1.6205]
[1744668611880,20.05004281,129.19,129.16,1.6205]
[1744668612083,12.30904281,129.17,129.13,6.6381]
[1744668612379,12.30904281,129.14,129.13,0.03]
[1744668612598,31.52733795,129.14,129.13,0.03]
[1744668613470,12.59336595,129.14,129.13,0.03]
[1744668613985,20.33686595,129.14,129.13,0.03]
[1744668614672,12.30904281,129.14,129.13,0.03]
[1744668614984,38.30904281,129.14,129.13,0.03]
[1744668616168,26.0,129.14,129.13,0.03]
[1744668616482,12.30904281,129.15,129.13,0.03]
[1744668616790,12.30904281,129.16,129.13,0.03]
[1744668617781,100.85084281,129.17,129.13,0.03]
[1744668618080,93.10904281,129.17,129.13,0.03]
[1744668618382,100.85084281,129.17,129.13,0.03]
[1744668618993,80.8,129.17,129.13,12.33904281]
[1744668619194,12.30904281,129.21,129.16,12.30904281]
[1744668619493,80.8,129.22,129.19,12.30904281]
[1744668619668,80.8,129.22,129.19,20.04904281]
[1744668620493,80.8,129.22,129.2,12.30904281]
[1744668620684,80.8,129.22,129.21,13.95804281]
[1744668621003,0.063,129.25,129.21,13.95804281]
[1744668621405,12.37204281,129.25,129.21,1.649]
[1744668621899,0.063,129.25,129.21,21.69724281]
[1744668622515,0.063,129.25,129.21,1.649]
[1744668622516,20.10904281,129.25,129.21,1.649]
[1744668625504,20.10904281,129.25,129.21,9.3883]
[1744668627103,0.34732314,129.25,129.21,21.69734281]
[1744668627306,0.063,129.25,129.21,21.69734281]
[1744668628810,0.063,129.25,129.22,20.04764281]
[1744668628991,0.063,129.25,129.23,12.30904281]
[1744668629808,0.063,129.25,129.22,12.30904281]
[1744668629998,12.30904281,129.24,129.21,1.649]
[1744668630910,20.39326595,129.25,129.21,9.3883]
[1744668632089,20.39326595,129.25,129.21,21.69734281]
[1744668635713,0.063,129.25,129.23,12.30904281]
[1744668637815,0.063,129.25,129.24,7.7375]
[1744668638007,0.063,129.25,129.24,20.04654281]
[1744668643296,0.063,129.25,129.24,15.59887848]
[1744668643501,0.063,129.3,129.25,26.714072]
[1744668643807,0.063,129.3,129.29,39.3068924]
[1744668645119,0.063,129.3,129.28,11.86]
[1744668645323,0.063,129.31,129.3,7.6666]
[1744668645498,0.063,129.31,129.3,32.19951934]
[1744668646195,0.063,129.31,129.3,19.93305967]
[1744668646817,0.063,129.31,129.3,32.19951934]
[1744668647227,0.063,129.31,129.3,39.93341934]
[1744668648900,0.063,129.31,129.3,27.66695967]
[1744668649415,0.063,129.31,129.3,39.93341934]
[1744668653222,0.0001,129.31,129.3,58.86739134]
[1744668653433,0.063,129.32,129.3,58.86739134]
[1744668653434,0.063,129.34,129.31,18.933972]
[1744668653628,0.063,129.34,129.33,12.26645967]
[1744668655017,0.063,129.34,129.33,19.99855967]
[1744668657733,0.063,129.37,129.36,26.0]
[1744668657913,0.063,129.37,129.36,58.54511934]
[1744668659037,0.063,129.39,129.36,85.06722977]
[1744668659038,0.0001,129.38,129.36,85.06722977]
[1744668659223,0.0001,129.38,129.37,12.26645967]
[1744668659531,0.0001,129.38,129.37,18.933972]
[1744668659715,0.0001,129.38,129.37,31.20043167]
[1744668660907,0.063,129.43,129.4,26.0]
[1744668661107,0.03,129.44,129.41,18.933972]
[1744668661309,0.03,129.44,129.43,12.26645967]
[1744668661613,0.03,129.44,129.43,32.79153167]
[1744668661614,0.0001,129.44,129.43,32.79153167]
[1744668662331,0.0001,129.44,129.43,13.85755967]
[1744668663434,0.0001,129.44,129.43,21.58365967]
[1744668663825,0.0001,129.44,129.43,9.3172]
[1744668664136,0.0001,129.44,129.43,19.99255967]
[1744668664729,0.0001,129.44,129.42,7.7265]
[1744668665033,0.0001,129.44,129.43,12.26645967]
[1744668665546,0.0001,129.44,129.43,19.99255967]
[1744668666925,0.03,129.47,129.44,18.933972]
[1744668667127,0.03,129.47,129.45,12.26645967]
[1744668667820,0.03,129.47,129.45,20.27568281]
[1744668668022,0.03,129.47,129.46,12.26645967]
[1744668669528,0.03,129.47,129.46,19.99075967]
[1744668671437,0.0001,129.47,129.46,51.19119134]
[1744668673142,0.03,129.49,129.46,70.78641448]
[1744668673346,7.7481,129.57,129.5,7.722]
[1744668673347,0.03,129.57,129.5,7.722]
[1744668673549,0.03,129.57,129.55,12.26645967]
[1744668673847,0.03,129.57,129.56,12.26645967]
[1744668674224,0.03,129.57,129.53,12.26645967]
[1744668674654,0.03,129.57,129.54,12.26645967]
[1744668675424,0.03,129.57,129.55,12.26645967]
[1744668675641,0.03,129.57,129.56,12.26645967]
[1744668677544,0.03,129.57,129.56,19.98485967]
[1744668679633,0.03,129.57,129.56,38.91883167]
[1744668679942,19.42296157,129.67,129.57,26.860072]
[1744668679943,12.26645967,129.67,129.57,26.860072]
[1744668680143,12.26645967,129.66,129.61,12.26645967]
[1744668680342,12.26645967,129.67,129.62,12.26645967]
[1744668681536,19.97845967,129.67,129.62,12.26645967]
[1744668681734,12.26645967,129.63,129.59,12.26645967]
[1744668682545,12.26645967,129.64,129.59,12.26645967]
[1744668682746,19.98015967,129.64,129.59,19.98275967]
[1744668682947,19.98015967,129.64,129.59,7.7163]
[1744668683260,19.98015967,129.64,129.59,19.98275967]
[1744668683746,0.14216157,129.63,129.59,12.26645967]
[1744668683949,12.26645967,129.61,129.56,24.08645967]
[1744668684258,12.26645967,129.62,129.58,12.26645967]
[1744668684452,12.26645967,129.63,129.58,12.26645967]
[1744668684632,12.26645967,129.63,129.59,12.26645967]
[1744668684831,12.26645967,129.64,129.59,12.26645967]
[1744668685931,19.98045967,129.64,129.59,19.98285967]
[1744668686132,12.26645967,129.63,129.59,19.98285967]
[1744668686461,12.26645967,129.63,129.58,19.98335967]
[1744668686761,12.26645967,129.62,129.58,12.26645967]
[1744668687649,12.26645967,129.62,129.57,19.98395967]
[1744668687853,12.26645967,129.59,129.54,19.98605967]
[1744668688032,12.26645967,129.58,129.54,7.7196]
[1744668688240,26.28432314,129.6,129.54,7.7196]
[1744668688437,12.26645967,129.58,129.54,7.7196]
[1744668688654,12.26645967,129.58,129.54,19.98605967]
[1744668688964,12.26645967,129.57,129.52,19.98695967]
[1744668689138,12.26645967,129.56,129.52,12.26645967]
[1744668689353,12.26645967,129.57,129.53,12.26645967]
[1744668690363,19.98445967,129.57,129.53,12.26645967]
[1744668690867,7.718,129.57,129.53,19.98665967]
[1744668691167,12.26645967,129.59,129.54,12.26645967]
[1744668691854,12.26645967,129.58,129.54,12.26645967]
[1744668692060,12.26645967,129.58,129.49,1.5921]
[1744668692061,12.26645967,129.55,129.49,1.5921]
[1744668692247,12.26645967,129.54,129.5,12.26645967]
[1744668692451,19.98505967,129.56,129.51,12.26645967]
[1744668692769,19.98505967,129.56,129.52,12.26645967]
[1744668692942,19.98445967,129.57,129.52,12.26645967]
[1744668693147,31.78395967,129.58,129.53,12.26645967]
[1744668694239,12.26645967,129.57,129.53,12.26645967]
[1744668695365,12.26645967,129.57,129.52,7.7203]
[1744668695539,12.26645967,129.57,129.53,12.26645967]
[1744668696244,19.98435967,129.57,129.53,19.98655967]
[1744668698261,19.98435967,129.57,129.52,12.26645967]
[1744668699373,12.26645967,129.54,129.5,7.722]
[1744668699554,0.28432314,129.56,129.49,1.5921]
[1744668699555,12.26645967,129.53,129.49,1.5921]
[1744668699754,12.26645967,129.53,129.48,26.38225967]
[1744668700062,12.26645967,129.52,129.48,26.38225967]
[1744668700362,26.0,129.54,129.47,7.7235]
[1744668700363,19.98795967,129.51,129.47,7.7235]
[1744668700573,12.26645967,129.5,129.46,7.7243]
[1744668700963,19.98755967,129.52,129.47,12.26645967]
[1744668701867,144.89111043,129.54,129.5,12.26645967]
[1744668701868,106.8,129.54,129.5,12.26645967]
[1744668702163,119.06645967,129.54,129.5,12.26645967]
[1744668702372,119.06645967,129.54,129.49,12.26645967]
[1744668703467,19.98675967,129.53,129.49,12.26645967]
[1744668703667,19.98675967,129.53,129.49,19.98895967]
[1744668704965,19.98675967,129.53,129.48,12.26645967]
[1744668705764,12.26645967,129.52,129.47,12.26645967]
[1744668705967,7.7203,129.53,129.46,7.7243]
[1744668706166,12.26645967,129.5,129.46,7.7243]
[1744668706354,12.26645967,129.49,129.46,7.7243]
[1744668706854,0.28432314,129.52,129.46,19.99075967]
[1744668707053,12.26645967,129.5,129.46,19.99075967]
[1744668708971,19.98845967,129.5,129.46,19.99075967]
[1744668709164,19.98845967,129.5,129.45,14.4316]
[1744668709351,19.98845967,129.5,129.45,26.69805967]
[1744668714171,19.98845967,129.5,129.46,12.26645967]
[1744668714470,19.98845967,129.5,129.46,19.99075967]
[1744668716278,80.8,129.54,129.49,12.26645967]
[1744668716484,6.22,129.57,129.52,12.26645967]
[1744668716485,11.8,129.57,129.52,12.26645967]
[1744668716656,24.06645967,129.57,129.52,12.26645967]
[1744668717153,12.26645967,129.56,129.52,12.26645967]
[1744668717471,12.26645967,129.56,129.51,19.98775967]
[1744668718375,7.719,129.55,129.51,19.98775967]
[1744668718580,7.719,129.55,129.47,6.2224]
[1744668718581,12.26645967,129.52,129.47,6.2224]
[1744668718872,12.26645967,129.48,129.45,0.063]
[1744668719073,12.26645967,129.47,129.45,0.063]
[1744668719267,12.26645967,129.48,129.45,0.063]
[1744668720072,12.26645967,129.47,129.45,0.063]
[1744668720476,19.21829514,129.51,129.45,0.063]
[1744668720477,19.99075967,129.46,129.45,0.063]
[1744668721052,19.59292314,129.48,129.45,0.063]
[1744668721053,26.0,129.47,129.45,0.063]
[1744668721469,12.26645967,129.46,129.45,0.063]
[1744668722448,45.99045967,129.47,129.45,0.063]
[1744668722762,12.26645967,129.46,129.45,0.063]
[1744668723882,19.99075967,129.46,129.45,0.063]
[1744668724282,20.27508281,129.46,129.45,0.063]
[1744668727570,7.7243,129.46,129.45,0.063]
[1744668727769,19.99075967,129.46,129.45,0.063]
[1744668729567,20.27508281,129.46,129.45,0.063]
[1744668730484,19.99075967,129.46,129.45,0.063]
[1744668731175,50.04645967,129.47,129.45,0.063]
[1744668731372,45.5038,129.47,129.45,0.063]
[1744668731674,57.77025967,129.47,129.45,0.063]
[1744668732687,12.55078281,129.46,129.45,0.063]
[1744668733891,20.27508281,129.46,129.45,0.063]
[1744668735594,39.20905481,129.46,129.45,0.063]
[1744668735764,120.00905481,129.46,129.45,0.0001]
[1744668736169,122.86718688,129.46,129.45,0.0001]
[1744668737590,103.93321488,129.46,129.45,0.0001]
[1744668737891,122.86718688,129.46,129.45,0.0001]
[1744668740900,26.0,129.42,129.4,0.063]
[1744668741190,12.55078281,129.41,129.4,0.063]
[1744668742591,12.26645967,129.41,129.4,0.063]
[1744668743474,19.99375967,129.41,129.4,0.063]
[1744668744685,50.04645967,129.42,129.4,0.063]
[1744668744990,37.78,129.42,129.4,0.063]
[1744668745187,93.06645967,129.45,129.4,12.32945967]
[1744668745394,93.06645967,129.45,129.41,1.5999]
[1744668745586,100.79145967,129.45,129.41,1.5999]
[1744668745987,93.06645967,129.45,129.41,13.86635967]
[1744668746378,93.06645967,129.49,129.44,12.26645967]
[1744668746596,80.8,129.49,129.46,7.7243]
[1744668747387,80.8,129.49,129.45,19.99105967]
[1744668748503,80.8,129.49,129.46,12.26645967]
[1744668748690,19.5015,129.51,129.46,12.26645967]
[1744668749005,12.26645967,129.5,129.46,12.26645967]
[1744668750405,12.26645967,129.49,129.42,25.8927]
[1744668750618,12.26645967,129.49,129.44,12.26645967]
[1744668751906,12.26645967,129.48,129.44,7.725]
[1744668752113,19.98905967,129.49,129.44,19.99145967]
[1744668753085,12.26645967,129.48,129.43,19.99255967]
[1744668753291,12.26645967,129.46,129.42,14.3027]
[1744668754708,19.99075967,129.46,129.42,14.3027]
[1744668755218,12.26645967,129.45,129.42,6.5762]
[1744668755405,12.26645967,129.44,129.42,6.5762]
[1744668756705,8.00812314,129.47,129.42,26.56935967]
[1744668756905,12.26645967,129.45,129.42,6.5762]
[1744668757209,12.26645967,129.44,129.42,6.5762]
[1744668759431,19.99215967,129.44,129.42,6.5762]
[1744668760024,19.99165967,129.45,129.42,6.5762]
[1744668762703,12.26645967,129.44,129.41,1.5999]
[1744668762903,19.99245967,129.44,129.41,1.5999]
[1744668763848,12.26645967,129.43,129.41,1.5999]
[1744668764125,12.26645967,129.43,129.4,0.063]
[1744668764126,12.26645967,129.42,129.4,0.063]
[1744668764312,12.26645967,129.41,129.4,0.063]
[1744668766029,19.99375967,129.41,129.4,0.063]
[1744668767827,22.8591869,129.41,129.4,0.063]
[1744668770238,19.99375967,129.41,129.4,0.063]
[1744668770840,12.26645967,129.41,129.4,0.063]
[1744668771028,12.26645967,129.42,129.4,0.063]
[1744668771235,12.26645967,129.41,129.4,0.063]
[1744668772245,15.13022158,129.41,129.4,0.063]
[1744668773128,22.85752158,129.41,129.4,0.063]
[1744668778748,23.42616786,129.41,129.4,0.063]
[1744668779532,23.28400629,129.41,129.4,0.063]
[1744668780851,26.14216157,129.38,129.37,0.063]
[1744668781151,50.45294438,129.38,129.37,0.063]
[1744668781352,50.45294438,129.38,129.35,0.063]
[1744668781353,19.21829514,129.37,129.35,0.063]
[1744668781531,26.0,129.31,129.29,0.063]
[1744668781738,38.26645967,129.31,129.29,0.063]
[1744668783232,45.99975967,129.31,129.29,0.063]
[1744668783433,58.26621934,129.31,129.29,0.063]
[1744668783748,77.48451448,129.31,129.29,0.063]
[1744668784450,46.42624438,129.31,129.29,0.063]
[1744668784833,45.99975967,129.31,129.29,0.063]
[1744668785129,38.26645967,129.31,129.29,0.063]
[1744668785438,46.42624438,129.31,129.29,0.063]
[1744668788352,80.8,129.33,129.29,0.063]
[1744668788530,80.8,129.33,129.29,13.98895967]
[1744668789248,93.06645967,129.33,129.29,13.98895967]
[1744668789556,93.06645967,129.33,129.29,1.7225]
[1744668789944,80.8,129.33,129.29,13.98895967]
[1744668790443,80.8,129.33,129.3,7.7969]
[1744668791753,138.66864628,129.37,129.3,7.7969]
[1744668791754,88.5287,129.39,129.32,12.26645967]
[1744668791960,12.26645967,129.37,129.33,12.26645967]
[1744668792556,12.26645967,129.37,129.33,7.7321]
[1744668793051,19.99615967,129.37,129.32,12.26645967]
[1744668793249,12.26645967,129.34,129.31,14.0878]
[1744668793952,12.26645967,129.33,129.31,14.0878]
[1744668794138,12.26645967,129.33,129.31,6.3545]
[1744668794856,12.26645967,129.32,129.3,0.063]
[1744668795250,12.26645967,129.33,129.3,0.063]
[1744668795454,19.63306157,129.35,129.3,20.06315967]
[1744668795455,24.02645967,129.35,129.3,20.06315967]
[1744668798152,12.26645967,129.33,129.3,0.063]
[1744668799062,12.26645967,129.32,129.3,0.063]
[1744668800260,12.26645967,129.31,129.3,0.063]
[1744668800467,26.0,129.28,129.24,6.1335]
[1744668800697,12.26645967,129.25,129.24,0.03]
[1744668801266,27.40756329,129.25,129.24,0.03]
[1744668801464,80.8,129.27,129.24,0.03]
[1744668801641,19.67066329,129.26,129.24,0.03]
[1744668801959,19.67066329,129.25,129.24,0.03]
[1744668802467,45.67066329,129.25,129.24,0.03]
[1744668803266,53.40756329,129.25,129.24,0.03]
[1744668806265,92.29652172,129.25,129.24,0.03]
[1744668806754,66.29652172,129.25,129.24,0.0001]
[1744668807267,7.7399,129.2,129.18,0.03]
[1744668807464,19.67066329,129.19,129.18,0.03]
[1744668807967,20.097148,129.19,129.18,0.03]
[1744668808144,58.55962172,129.19,129.18,0.03]
[1744668808753,38.88895843,129.19,129.18,0.03]
[1744668809169,19.67066329,129.19,129.18,0.03]
[1744668809669,20.097148,129.19,129.18,0.03]
[1744668811871,27.837648,129.19,129.18,0.03]
[1744668812675,19.67066329,129.19,129.18,0.03]
[1744668813382,27.837648,129.19,129.18,0.03]
[1744668813873,27.41116329,129.19,129.18,0.03]
[1744668814854,38.46247372,129.19,129.18,0.03]
[1744668815056,0.28432314,129.18,129.17,0.03]
[1744668815243,39.76781129,129.18,129.17,0.03]
[1744668815976,47.50891129,129.18,129.17,0.03]
[1744668816268,0.14216157,129.13,129.12,30.03]
[1744668816473,19.81282486,129.13,129.12,30.03]